bitfinex/quotes_BTCUSD_20210101
["timestamp","ask_amount","ask_price","bid_price","bid_amount"]
[1609498318807,1.244972,29262.0,29261.0,0.41072666]
[1609498319005,1.244972,29262.0,29261.0,0.40698666]
[1609498319508,1.244972,29262.0,29261.0,0.04239666]
[1609498319934,1.194972,29262.0,29261.0,0.04239666]
[1609498320535,1.194972,29262.0,29261.0,0.40698666]
[1609498321333,1.194972,29262.0,29261.0,0.04239666]
[1609498321735,1.73538845,29262.0,29261.0,0.04239666]
[1609498321936,1.559562,29262.0,29261.0,0.04239666]
[1609498324050,1.559562,29262.0,29261.0,0.04197667]
[1609498326764,2.46388702,29262.0,29261.0,0.04197667]
[1609498327466,2.63971347,29262.0,29261.0,0.04197667]
[1609498327763,2.79971347,29262.0,29261.0,0.04197667]
[1609498329099,6.62971347,29262.0,29261.0,0.04197667]
[1609498330104,8.57971347,29262.0,29261.0,0.04197667]
[1609498331004,8.57971347,29262.0,29261.0,0.37097311]
[1609498331206,8.57971347,29262.0,29260.0,0.5289662]
[1609498331403,8.29107288,29261.0,29260.0,0.5289662]
[1609498331606,8.29107288,29261.0,29260.0,0.2]
[1609498332108,8.37107288,29261.0,29260.0,0.24460055]
[1609498332303,8.37107288,29261.0,29260.0,0.57364826]
[1609498333105,8.37107288,29261.0,29260.0,0.24460055]
[1609498334305,1.4810991,29261.0,29260.0,0.24460055]
[1609498334509,0.076703,29261.0,29260.0,0.24460055]
[1609498334732,0.076703,29261.0,29260.0,0.57359808]
[1609498335433,0.076703,29261.0,29260.0,0.24460055]
[1609498335732,0.226703,29261.0,29260.0,0.24460055]
[1609498336627,0.226703,29261.0,29260.0,0.2]
[1609498336828,0.226703,29261.0,29260.0,0.24444453]
[1609498339550,1.13102802,29261.0,29260.0,0.24444453]
[1609498339748,1.47685447,29261.0,29260.0,0.24444453]
[1609498340049,4.37685447,29261.0,29260.0,0.24444453]
[1609498340866,3.47252945,29261.0,29260.0,0.24444453]
[1609498341069,4.37685447,29261.0,29260.0,0.24444453]
[1609498341269,2.30102802,29261.0,29260.0,0.24444453]
[1609498341467,1.396703,29261.0,29260.0,0.24444453]
[1609498344901,2.796703,29261.0,29260.0,0.24444453]
[1609498345103,2.97252945,29261.0,29260.0,0.24444453]
[1609498345401,2.796703,29261.0,29260.0,0.24444453]
[1609498345603,2.97252945,29261.0,29260.0,0.24444453]
[1609498346004,2.796703,29261.0,29260.0,0.24444453]
[1609498346602,2.97252945,29261.0,29260.0,0.24444453]
[1609498348004,2.796703,29261.0,29260.0,0.24444453]
[1609498348406,2.97252945,29261.0,29260.0,0.24444453]
[1609498349009,1.396703,29261.0,29260.0,0.24444453]
[1609498349824,2.696703,29261.0,29260.0,0.24444453]
[1609498350024,3.77685447,29261.0,29260.0,0.24444453]
[1609498352224,3.77185447,29261.0,29260.0,0.24444453]
[1609498353725,4.47185447,29261.0,29260.0,0.24444453]
[1609498353925,3.77185447,29261.0,29260.0,0.24444453]
[1609498354711,2.47185447,29261.0,29260.0,0.24444453]
[1609498357513,1.56752945,29261.0,29260.0,0.24444453]
[1609498357813,2.91752945,29261.0,29260.0,0.24444453]
[1609498358513,1.391703,29261.0,29260.0,0.24444453]
[1609498358716,2.34752945,29261.0,29260.0,0.24444453]
[1609498358916,2.171703,29261.0,29260.0,0.24444453]
[1609498359150,2.34752945,29261.0,29260.0,0.24444453]
[1609498359354,2.171703,29261.0,29260.0,0.24444453]
[1609498359551,3.44752945,29261.0,29260.0,0.24444453]
[1609498359854,2.34752945,29261.0,29260.0,0.24444453]
[1609498360051,2.171703,29261.0,29260.0,0.24444453]
[1609498360453,1.471703,29261.0,29260.0,0.24444453]
[1609498361454,2.37602802,29261.0,29260.0,0.24444453]
[1609498361653,4.82602802,29261.0,29260.0,0.24444453]
[1609498361955,2.37602802,29261.0,29260.0,0.24444453]
[1609498362553,4.72602802,29261.0,29260.0,0.24444453]
[1609498362751,2.37602802,29261.0,29260.0,0.24444453]
[1609498364653,2.55185447,29261.0,29260.0,0.24444453]
[1609498365271,2.76676447,29261.0,29260.0,0.24444453]
[1609498365671,6.91676447,29261.0,29260.0,0.24444453]
[1609498365870,6.96728447,29261.0,29260.0,0.24444453]
[1609498369264,6.927799,29261.0,29260.0,0.24444453]
[1609498371671,2.777799,29261.0,29260.0,0.24444453]
[1609498372471,4.527799,29261.0,29260.0,0.24444453]
[1609498372669,3.62347398,29261.0,29260.0,0.24444453]
[1609498373570,5.827799,29261.0,29260.0,0.24444453]
[1609498373767,4.92347398,29261.0,29260.0,0.24444453]
[1609498374707,5.827799,29261.0,29260.0,0.24444453]
[1609498375407,6.577799,29261.0,29260.0,0.24444453]
[1609498375606,5.827799,29261.0,29260.0,0.24444453]
[1609498375813,5.777279,29261.0,29260.0,0.24444453]
[1609498378211,4.87295398,29261.0,29260.0,0.24444453]
[1609498378715,3.57295398,29261.0,29260.0,0.24444453]
[1609498379513,4.42295398,29261.0,29260.0,0.24444453]
[1609498379714,3.57295398,29261.0,29260.0,0.24444453]
[1609498379923,3.39712753,29261.0,29260.0,0.24444453]
[1609498380126,3.49712753,29261.0,29260.0,0.24444453]
[1609498380622,3.69712753,29261.0,29260.0,0.24444453]
[1609498381525,5.04712753,29261.0,29260.0,0.24444453]
[1609498381823,5.95145255,29261.0,29260.0,0.24444453]
[1609498382025,3.69712753,29261.0,29260.0,0.24444453]
[1609498382427,4.59712753,29261.0,29260.0,0.24444453]
[1609498383429,4.64712753,29261.0,29260.0,0.24444453]
[1609498384444,5.44712753,29261.0,29260.0,0.24444453]
[1609498384645,3.69712753,29261.0,29260.0,0.24444453]
[1609498385445,4.49712753,29261.0,29260.0,0.24444453]
[1609498386657,3.69712753,29261.0,29260.0,0.24444453]
[1609498388563,1.94712753,29261.0,29260.0,0.24444453]
[1609498388763,1.73221753,29261.0,29260.0,0.24444453]
[1609498389285,3.18221753,29261.0,29260.0,0.24444453]
[1609498389587,1.73221753,29261.0,29260.0,0.24444453]
[1609498390392,1.43221753,29261.0,29260.0,0.24444453]
[1609498390592,1.35221753,29261.0,29260.0,0.24444453]
[1609498390797,1.53221753,29261.0,29260.0,0.24444453]
[1609498390992,1.43221753,29261.0,29260.0,0.24444453]
[1609498391194,1.35221753,29261.0,29260.0,0.24444453]
[1609498391696,1.43221753,29261.0,29260.0,0.24444453]
[1609498392398,1.35221753,29261.0,29260.0,0.24444453]
[1609498392597,1.35221753,29261.0,29260.0,0.34011951]
[1609498393898,1.03221753,29261.0,29260.0,0.24444453]
[1609498394296,1.03221753,29261.0,29260.0,0.34011951]
[1609498395714,1.03221753,29261.0,29260.0,0.24444453]
[1609498395918,1.18221753,29261.0,29260.0,0.24444453]
[1609498396316,0.88221753,29261.0,29260.0,0.24444453]
[1609498397924,0.98221753,29261.0,29260.0,0.24444453]
[1609498398124,1.26221753,29261.0,29260.0,0.24444453]
[1609498398420,1.16221753,29261.0,29260.0,0.24444453]
[1609498398620,1.26221753,29261.0,29260.0,0.24444453]
[1609498400244,3.96221753,29261.0,29260.0,0.24444453]
[1609498402561,1.26221753,29261.0,29260.0,0.24444453]
[1609498403164,3.21221753,29261.0,29260.0,0.24444453]
[1609498403363,3.44555753,29261.0,29260.0,0.24444453]
[1609498403863,3.55176753,29261.0,29260.0,0.24444453]
[1609498404986,1.60176753,29261.0,29260.0,0.24444453]
[1609498405186,2.85176753,29261.0,29260.0,0.24444453]
[1609498405986,1.60176753,29261.0,29260.0,0.24444453]
[1609498406194,1.40176753,29261.0,29260.0,0.24444453]
[1609498406591,1.26221753,29261.0,29260.0,0.24444453]
[1609498407594,5.41221753,29261.0,29260.0,0.22444453]
[1609498410111,1.26221753,29261.0,29260.0,0.22444453]
[1609498410314,1.06221753,29261.0,29260.0,0.22444453]
[1609498410713,1.26221753,29261.0,29260.0,0.22444453]
[1609498411018,4.06221753,29261.0,29260.0,0.22444453]
[1609498413121,4.86221753,29261.0,29260.0,0.22444453]
[1609498413523,4.06221753,29261.0,29260.0,0.22444453]
[1609498415690,1.26221753,29261.0,29260.0,0.22444453]
[1609498416091,3.71221753,29261.0,29260.0,0.22444453]
[1609498418993,4.51221753,29261.0,29260.0,0.22444453]
[1609498420622,3.71221753,29261.0,29260.0,0.22444453]
[1609498420828,1.06221753,29261.0,29260.0,0.22444453]
[1609498421027,0.98221753,29261.0,29260.0,0.22444453]
[1609498421326,0.88221753,29261.0,29260.0,0.22444453]
[1609498421530,0.98221753,29261.0,29260.0,0.22444453]
[1609498421727,0.88221753,29261.0,29260.0,0.22444453]
[1609498422142,0.88221753,29261.0,29260.0,0.32011951]
[1609498422331,0.73221753,29261.0,29260.0,0.32011951]
[1609498423027,0.73221753,29261.0,29260.0,2.07011951]
[1609498423225,0.73221753,29261.0,29260.0,0.32011951]
[1609498424231,0.72971753,29261.0,29260.0,2.47011951]
[1609498424431,0.65301453,29261.0,29260.0,3.00511951]
[1609498424632,0.65301453,29261.0,29260.0,3.36970951]
[1609498425053,0.65301453,29261.0,29260.0,3.5066879]
[1609498426556,0.65301453,29261.0,29260.0,0.9920979]
[1609498426759,0.65301453,29261.0,29260.0,0.4570979]
[1609498426958,1.01760453,29261.0,29260.0,0.5570979]
[1609498427656,1.01760453,29261.0,29260.0,0.42011951]
[1609498430725,0.65301453,29261.0,29260.0,0.42011951]
[1609498430924,0.65301453,29261.0,29260.0,0.66011951]
[1609498431831,0.65301453,29261.0,29260.0,0.56011951]
[1609498432928,0.65301453,29261.0,29260.0,0.54011951]
[1609498433729,0.65301453,29261.0,29260.0,0.64011951]
[1609498433933,0.65301453,29261.0,29260.0,0.84011951]
[1609498434450,0.65301453,29261.0,29260.0,0.64011951]
[1609498435253,0.65301453,29261.0,29260.0,0.64444453]
[1609498435457,1.01760453,29261.0,29260.0,0.40444453]
[1609498435655,1.01760453,29261.0,29260.0,0.20444453]
[1609498440981,1.01670453,29261.0,29260.0,1.70444453]
[1609498441181,1.01670453,29261.0,29260.0,0.55944453]
[1609498441385,1.01670453,29261.0,29260.0,0.20444453]
[1609498445353,1.11670453,29261.0,29260.0,0.20444453]
[1609498446872,1.01670453,29261.0,29260.0,0.69900335]
[1609498447175,1.26670453,29261.0,29260.0,0.69900335]
[1609498447373,1.01670453,29261.0,29260.0,0.69900335]
[1609498447572,1.11670453,29261.0,29260.0,0.69900335]
[1609498447773,1.01670453,29261.0,29260.0,0.69900335]
[1609498447972,1.11670453,29261.0,29260.0,0.69900335]
[1609498448274,1.01670453,29261.0,29260.0,0.20444453]
[1609498448773,1.11670453,29261.0,29260.0,0.20444453]
[1609498449077,1.18170453,29261.0,29260.0,0.20444453]
[1609498450293,1.18170453,29261.0,29260.0,0.19944453]
[1609498450800,1.01670453,29261.0,29260.0,0.39511951]
[1609498451000,1.01670453,29261.0,29260.0,0.19944453]
[1609498451398,1.01670453,29261.0,29260.0,0.29511951]
[1609498451698,1.01120453,29261.0,29260.0,0.42381453]
[1609498453096,1.01120453,29261.0,29260.0,0.19944453]
[1609498455718,1.26120453,29261.0,29260.0,0.19944453]
[1609498456519,1.16120453,29261.0,29260.0,0.19944453]
[1609498456821,1.26120453,29261.0,29260.0,0.19944453]
[1609498459020,1.25620453,29261.0,29260.0,0.19944453]
[1609498461806,0.61459,29261.0,29260.0,0.55783]
[1609498462608,0.8982,29265.0,29261.0,0.38541]
[1609498462809,0.076703,29262.0,29261.0,0.38541]
[1609498463107,0.076703,29262.0,29261.0,0.92287265]
[1609498463710,0.235,29264.0,29262.0,0.923297]
[1609498464212,0.235,29264.0,29263.0,0.04146869]
[1609498464438,4.48932502,29264.0,29263.0,0.04146869]
[1609498464637,4.56932502,29264.0,29263.0,0.04146869]
[1609498464839,6.06932502,29264.0,29263.0,0.04146869]
[1609498465041,6.87432502,29264.0,29263.0,0.04146869]
[1609498465443,6.87432502,29264.0,29261.0,0.04147173]
[1609498465740,5.6743961,29262.0,29261.0,1.04147173]
[1609498465936,8.39372112,29262.0,29261.0,1.04147173]
[1609498466537,9.19872112,29262.0,29261.0,1.04147173]
[1609498466936,8.87432502,29262.0,29261.0,1.04147173]
[1609498469538,8.87432502,29262.0,29261.0,1.04098173]
[1609498470455,9.19872112,29262.0,29261.0,1.04098173]
[1609498471356,8.87432502,29262.0,29261.0,1.04098173]
[1609498473070,9.19872112,29262.0,29261.0,1.04098173]
[1609498473818,9.19872112,29262.0,29261.0,0.04147173]
[1609498474863,9.45452112,29262.0,29261.0,0.04147173]
[1609498475782,9.45452112,29262.0,29261.0,0.16564802]
[1609498475979,9.49011605,29262.0,29261.0,0.16564802]
[1609498476181,5.9243961,29261.0,29260.0,0.27910498]
[1609498476380,9.56872112,29261.0,29260.0,0.27910498]
[1609498476781,9.64872112,29261.0,29260.0,0.27910498]
[1609498478086,9.64872112,29261.0,29260.0,0.155]
[1609498479089,9.64297112,29261.0,29260.0,0.155]
[1609498479900,5.7,29261.0,29260.0,0.155]
[1609498480201,4.7,29261.0,29260.0,0.155]
[1609498481102,6.2,29261.0,29260.0,0.155]
[1609498481803,1.5,29261.0,29260.0,0.155]
[1609498482004,2.1,29261.0,29260.0,0.155]
[1609498482403,1.0,29261.0,29260.0,0.155]
[1609498483409,1.9,29261.0,29260.0,0.155]
[1609498483805,1.0,29261.0,29260.0,0.155]
[1609498484108,0.53936605,29262.0,29260.0,0.155]
[1609498484507,0.03559493,29262.0,29260.0,0.155]
[1609498486326,0.03559493,29262.0,29261.0,0.16542391]
[1609498486527,1.03559493,29262.0,29261.0,1.16542391]
[1609498487230,4.13559493,29262.0,29261.0,1.16542391]
[1609498487531,1.03559493,29262.0,29261.0,1.04148018]
[1609498487927,1.03559493,29262.0,29261.0,1.21648018]
[1609498488127,1.78559493,29262.0,29261.0,1.21648018]
[1609498489331,1.78159493,29262.0,29261.0,1.21648018]
[1609498489593,1.75,29262.0,29261.0,1.04148018]
[1609498490191,3.85,29262.0,29261.0,1.04148018]
[1609498490392,1.75,29262.0,29261.0,1.04148018]
[1609498490794,1.75,29262.0,29261.0,1.01182918]
[1609498490795,6.6,29262.0,29261.0,1.01182918]
[1609498492500,1.75,29262.0,29261.0,1.01182918]
[1609498493101,3.35,29262.0,29261.0,1.01182918]
[1609498493804,4.85,29262.0,29261.0,1.01182918]
[1609498495534,7.88559452,29262.0,29261.0,0.83472918]
[1609498495731,8.03479452,29262.0,29261.0,0.83472918]
[1609498496030,5.02763875,29262.0,29261.0,0.83472918]
[1609498496728,5.02763875,29262.0,29261.0,0.04148018]
[1609498496925,4.87843875,29262.0,29261.0,0.04148018]
[1609498498026,5.62843875,29262.0,29261.0,0.04148018]
[1609498498231,4.87843875,29262.0,29261.0,0.04148018]
[1609498500651,4.87843875,29262.0,29260.0,0.155]
[1609498500652,5.6,29261.0,29260.0,0.155]
[1609498500847,8.1,29261.0,29260.0,0.155]
[1609498501650,8.17119406,29261.0,29260.0,0.155]
[1609498505737,2.57119406,29261.0,29260.0,0.155]
[1609498505941,4.22119406,29261.0,29260.0,0.155]
[1609498507241,2.57119406,29261.0,29260.0,0.155]
[1609498507741,2.5,29261.0,29260.0,0.155]
[1609498509044,4.1,29261.0,29260.0,0.155]
[1609498509242,2.5,29261.0,29260.0,0.155]
[1609498509877,3.95,29261.0,29260.0,0.155]
[1609498512878,2.5,29261.0,29260.0,0.155]
[1609498513880,3.5,29261.0,29260.0,0.155]
[1609498514080,1.0,29261.0,29260.0,0.155]
[1609498514880,3.5,29261.0,29260.0,0.155]
[1609498516006,3.5,29261.0,29260.0,0.19657343]
[1609498516806,4.35,29261.0,29260.0,0.19657343]
[1609498517007,3.5,29261.0,29260.0,0.19657343]
[1609498517305,5.0,29261.0,29260.0,0.19657343]
[1609498517706,3.5,29261.0,29260.0,0.19657343]
[1609498517907,1.0,29261.0,29260.0,0.19657343]
[1609498518906,3.15,29261.0,29260.0,0.19657343]
[1609498521480,1.0,29261.0,29260.0,0.19657343]
[1609498521683,0.2469113,29259.0,29257.0,0.82145608]
[1609498522784,0.17854392,29257.0,29256.0,1.215]
[1609498523083,0.17854392,29257.0,29256.0,1.0]
[1609498523280,0.17854392,29257.0,29251.0,0.2]
[1609498523482,0.17854392,29257.0,29256.0,1.0]
[1609498524481,0.17854392,29257.0,29255.0,1.6711181]
[1609498524910,0.17854392,29257.0,29256.0,0.25]
[1609498529117,0.17854392,29257.0,29255.0,0.6711181]
[1609498532747,0.27971866,29257.0,29255.0,0.6711181]
[1609498534617,0.17854392,29257.0,29255.0,0.6711181]
[1609498536018,1.0,29256.0,29255.0,0.6711181]
[1609498537119,1.0,29256.0,29255.0,0.71269666]
[1609498540519,1.05565,29256.0,29255.0,0.71269666]
[1609498541741,1.05565,29256.0,29249.0,1.0]
[1609498541742,0.46312979,29254.0,29249.0,1.0]
[1609498543638,0.46312979,29254.0,29249.0,0.9917269]
[1609498544041,0.46312979,29254.0,29250.0,0.145]
[1609498544246,0.46312979,29254.0,29250.0,0.9917269]
[1609498546049,0.28730334,29254.0,29250.0,0.9917269]
[1609498546243,0.28730334,29254.0,29251.0,0.145]
[1609498546542,0.28730334,29254.0,29252.0,0.9917269]
[1609498548265,0.28730334,29254.0,29253.0,0.17]
[1609498548470,0.28730334,29254.0,29253.0,1.1617269]
[1609498553659,0.28730334,29254.0,29253.0,0.17]
[1609498553856,0.28730334,29254.0,29252.0,0.9917269]
[1609498556483,0.28730334,29254.0,29253.0,0.145]
[1609498557484,0.28730334,29254.0,29248.0,0.0002]
[1609498557686,0.28730334,29254.0,29249.0,0.9917269]
[1609498558391,0.28730334,29254.0,29249.0,1.1917269]
[1609498558583,0.28730334,29254.0,29250.0,1.1917269]
[1609498558784,0.28730334,29254.0,29251.0,1.1667269]
[1609498558987,0.28730334,29254.0,29251.0,0.9917269]
[1609498561110,0.28730334,29254.0,29250.0,1.1917269]
[1609498562011,0.28730334,29254.0,29250.0,0.9917269]
[1609498562713,0.28730334,29254.0,29250.0,1.1917269]
[1609498562912,0.28730334,29254.0,29251.0,0.175]
[1609498563113,0.28730334,29254.0,29248.0,0.2002]
[1609498563323,0.28730334,29254.0,29250.0,0.3]
[1609498563620,0.28730334,29254.0,29251.0,1.2195369]
[1609498563814,0.28730334,29254.0,29252.0,1.1917269]
[1609498564017,0.28730334,29254.0,29253.0,1.5017269]
[1609498564214,0.28730334,29254.0,29253.0,1.6563069]
[1609498565681,0.28730334,29254.0,29253.0,1.65592811]
[1609498566381,0.28730334,29254.0,29253.0,2.65592811]
[1609498566681,0.28730334,29254.0,29253.0,3.08592811]
[1609498567585,0.28730334,29254.0,29253.0,2.88592811]
[1609498567783,0.28730334,29254.0,29253.0,3.08592811]
[1609498574700,0.28730334,29254.0,29253.0,2.98592811]
[1609498577329,0.28730334,29254.0,29253.0,1.99458]
[1609498577529,0.28730334,29254.0,29253.0,2.98592811]
[1609498577929,0.28730334,29254.0,29253.0,1.99458]
[1609498578128,0.28730334,29254.0,29253.0,2.62134811]
[1609498578331,0.28730334,29254.0,29253.0,2.98592811]
[1609498578531,0.28730334,29254.0,29253.0,1.63]
[1609498578739,0.28730334,29254.0,29248.0,0.0802]
[1609498578938,0.46518334,29254.0,29250.0,1.0]
[1609498579456,0.46518334,29254.0,29251.0,0.15]
[1609498580434,0.28730334,29254.0,29251.0,0.15]
[1609498580927,0.28730334,29254.0,29249.0,0.2]
[1609498581139,0.28730334,29254.0,29248.0,0.0002]
[1609498581339,0.28730334,29254.0,29249.0,0.2]
[1609498581540,0.28730334,29254.0,29250.0,1.19134811]
[1609498581847,0.28730334,29254.0,29251.0,1.49634811]
[1609498582043,0.28730334,29254.0,29252.0,1.55592811]
[1609498582939,0.28730334,29254.0,29253.0,1.2]
[1609498583436,0.28730334,29254.0,29253.0,1.57]
[1609498587074,0.28730334,29254.0,29253.0,1.37]
[1609498589375,0.28730334,29254.0,29253.0,0.37]
[1609498589579,0.28730334,29254.0,29252.0,0.74267302]
[1609498589977,0.28730334,29254.0,29253.0,0.1]
[1609498590390,0.28730334,29254.0,29252.0,0.94267302]
[1609498590591,0.28730334,29254.0,29253.0,0.14]
[1609498590792,0.28730334,29254.0,29253.0,0.22]
[1609498591096,0.28730334,29254.0,29253.0,0.14]
[1609498595154,0.28730334,29254.0,29253.0,0.24]
[1609498595752,0.28730334,29254.0,29253.0,0.14]
[1609498595954,0.28730334,29254.0,29253.0,0.24]
[1609498596761,0.28730334,29254.0,29253.0,0.34]
[1609498596964,0.28730334,29254.0,29253.0,0.14]
[1609498608824,0.56478979,29254.0,29253.0,0.14]
[1609498609324,0.56478979,29254.0,29252.0,0.74267302]
[1609498609325,0.38896334,29254.0,29252.0,0.74267302]
[1609498612950,0.38896334,29254.0,29253.0,0.33236147]
[1609498613149,0.38896334,29254.0,29253.0,0.49236147]
[1609498614351,0.38896334,29254.0,29253.0,0.16]
[1609498614551,0.28730334,29254.0,29253.0,0.16]
[1609498626973,2.98604334,29254.0,29253.0,0.16]
[1609498627172,0.48604334,29254.0,29252.0,0.74267302]
[1609498635413,0.28730334,29254.0,29252.0,0.74267302]
[1609498640802,0.47754334,29254.0,29252.0,0.74267302]
[1609498645509,0.47754334,29254.0,29253.0,0.33248538]
[1609498646112,0.47754334,29254.0,29252.0,0.74267302]
[1609498646414,5.90822198,29253.0,29252.0,0.74267302]
[1609498646615,5.90822198,29253.0,29252.0,3.02e-06]
[1609498646616,7.92822198,29253.0,29252.0,3.02e-06]
[1609498646828,7.92822198,29253.0,29250.0,0.33248312]
[1609498647030,7.92822198,29253.0,29248.0,0.0002]
[1609498647031,1.0,29251.0,29248.0,0.0002]
[1609498647226,0.31495834,29250.0,29248.0,0.0002]
[1609498647426,0.31495834,29250.0,29247.0,0.0004]
[1609498647427,5.6,29248.0,29245.0,0.33310784]
[1609498647739,5.6,29248.0,29239.0,0.0002]
[1609498647740,5.6,29243.0,29239.0,0.0002]
[1609498647937,5.6,29243.0,29234.0,0.00075715]
[1609498647938,5.6,29239.0,29234.0,0.00075715]
[1609498648127,0.32570358,29238.0,29234.0,0.00075715]
[1609498648433,5.85,29237.0,29231.0,0.0002]
[1609498648728,0.32350812,29236.0,29231.0,0.0002]
[1609498648931,0.32696426,29236.0,29231.0,0.0002]
[1609498649525,1.32696426,29236.0,29231.0,0.0002]
[1609498649725,0.32350812,29235.0,29231.0,0.0002]
[1609498650124,0.13582,29236.0,29231.0,0.0002]
[1609498651725,1.0,29235.0,29231.0,0.0002]
[1609498651927,1.0,29235.0,29231.0,0.00055024]
[1609498652546,1.10005,29235.0,29231.0,0.00055024]
[1609498655136,1.10005,29235.0,29231.0,0.99189835]
[1609498655339,1.0,29235.0,29232.0,0.145]
[1609498656348,1.0,29235.0,29232.0,0.98689835]
[1609498656750,1.0,29235.0,29231.0,0.98689835]
[1609498657049,1.0,29235.0,29230.0,0.98749835]
[1609498657249,1.04239,29235.0,29230.0,0.98749835]
[1609498657547,1.04239,29235.0,29230.0,0.0006]
[1609498657744,1.04239,29235.0,29230.0,0.98749835]
[1609498658048,1.04239,29235.0,29231.0,0.145]
[1609498658244,1.04239,29235.0,29230.0,0.0006]
[1609498658645,1.04239,29235.0,29230.0,0.98749835]
[1609498658848,1.04239,29235.0,29230.0,0.98784125]
[1609498659052,1.0,29235.0,29231.0,1.18689835]
[1609498659254,1.0,29235.0,29232.0,1.18689835]
[1609498659548,1.0,29235.0,29233.0,1.08724125]
[1609498659749,1.0,29235.0,29233.0,0.98724125]
[1609498659989,1.0,29235.0,29233.0,0.0003429]
[1609498660188,1.0,29235.0,29231.0,0.2003429]
[1609498660988,1.0,29235.0,29232.0,0.1]
[1609498661188,1.0,29235.0,29232.0,0.2003429]
[1609498661689,1.0,29235.0,29232.0,1.18689835]
[1609498661891,1.0,29235.0,29233.0,1.46189835]
[1609498662095,1.0,29235.0,29234.0,1.36752835]
[1609498662394,1.0,29235.0,29234.0,0.74521]
[1609498662594,1.0,29235.0,29234.0,0.38063]
[1609498662794,1.0,29235.0,29234.0,0.5809729]
[1609498663488,1.0,29235.0,29234.0,0.4003429]
[1609498664087,1.0,29235.0,29234.0,0.5022547]
[1609498664493,1.0,29235.0,29234.0,0.4003429]
[1609498664892,1.0,29235.0,29234.0,0.5003429]
[1609498665190,1.0,29235.0,29234.0,0.4003429]
[1609498666418,1.0,29235.0,29234.0,0.5003429]
[1609498666820,1.0,29235.0,29234.0,0.4003429]
[1609498667321,1.0,29235.0,29234.0,0.2003429]
[1609498667918,1.0,29235.0,29234.0,0.0003429]
[1609498668118,1.0,29235.0,29233.0,0.84364168]
[1609498669462,1.87658981,29235.0,29233.0,0.84364168]
[1609498677808,1.87658981,29235.0,29233.0,0.83364168]
[1609498686626,1.87658981,29235.0,29233.0,1.03364168]
[1609498686830,1.87658981,29235.0,29234.0,1.555]
[1609498687026,1.87658981,29235.0,29234.0,0.155]
[1609498687427,1.87658981,29235.0,29234.0,0.4553429]
[1609498687631,1.87658981,29235.0,29234.0,0.3553429]
[1609498690857,1.87658981,29235.0,29234.0,0.355]
[1609498693661,1.87658981,29235.0,29234.0,0.155]
[1609498694664,1.87658981,29235.0,29234.0,0.355]
[1609498695161,1.87658981,29235.0,29234.0,0.455]
[1609498696586,1.87658981,29235.0,29234.0,1.44189835]
[1609498696790,1.87658981,29235.0,29234.0,4.60647835]
[1609498696989,1.87658981,29235.0,29234.0,4.68647835]
[1609498697290,1.87658981,29235.0,29234.0,2.05647835]
[1609498697494,1.87658981,29235.0,29234.0,2.19887411]
[1609498697902,1.87658981,29235.0,29234.0,6.18647835]
[1609498698193,1.86698981,29235.0,29234.0,6.18647835]
[1609498698391,1.86508981,29235.0,29234.0,7.73647835]
[1609498698596,1.00000981,29235.0,29234.0,7.79886859]
[1609498698794,0.2631,29255.0,29235.0,0.53180302]
[1609498698995,0.6455,29249.0,29239.0,0.53180302]
[1609498699197,0.6577,29254.0,29241.0,0.53180302]
[1609498699429,0.6577,29254.0,29243.0,0.53180302]
[1609498699592,0.6577,29254.0,29245.0,0.53180302]
[1609498699796,0.6577,29254.0,29247.0,0.53180302]
[1609498700066,0.6577,29254.0,29248.0,0.3]
[1609498700364,0.6577,29254.0,29248.0,1.28689835]
[1609498700669,0.6577,29254.0,29249.0,1.37689835]
[1609498700864,0.6577,29254.0,29249.0,0.27]
[1609498701064,0.6577,29254.0,29249.0,1.06689835]
[1609498701262,0.6577,29254.0,29250.0,0.98689835]
[1609498701472,0.6577,29254.0,29251.0,0.1]
[1609498701677,0.6577,29254.0,29251.0,0.29861]
[1609498701874,0.2991,29261.0,29251.0,0.29861]
[1609498702076,0.4727,29262.0,29251.0,0.29861]
[1609498702876,0.0004,29264.0,29251.0,0.29861]
[1609498703777,0.0004,29264.0,29251.0,0.234674]
[1609498704378,0.0004,29264.0,29250.0,0.28]
[1609498704879,0.03560046,29261.0,29250.0,0.08]
[1609498706601,0.03560046,29261.0,29247.0,0.386064]
[1609498706806,0.03560046,29261.0,29247.0,0.67931558]
[1609498707013,0.03560046,29261.0,29247.0,0.236064]
[1609498707515,0.03560046,29261.0,29247.0,1.22296235]
[1609498707916,1.6593,29262.0,29247.0,1.22296235]
[1609498708116,1.6593,29262.0,29240.0,0.4642]
[1609498708323,8.06227074,29261.0,29244.0,0.1031306]
[1609498708519,1.33180302,29259.0,29244.0,0.1031306]
[1609498708716,0.33180302,29258.0,29244.0,0.1031306]
[1609498708916,0.33180302,29257.0,29244.0,0.1031306]
[1609498709118,0.9327,29258.0,29244.0,0.1031306]
[1609498709318,0.08,29257.0,29246.0,1.0]
[1609498709716,0.08,29257.0,29247.0,0.15]
[1609498710320,0.08,29257.0,29248.0,1.0]
[1609498711934,1.0,29256.0,29248.0,1.0]
[1609498712237,0.39,29255.0,29248.0,1.0]
[1609498712434,0.2,29254.0,29248.0,1.0]
[1609498712733,1.28,29254.0,29248.0,0.9]
[1609498712935,0.405,29253.0,29248.0,0.9]
[1609498713130,0.4,29253.0,29248.0,0.9]
[1609498713535,0.4,29253.0,29240.0,0.3311384]
[1609498713733,0.4,29253.0,29242.0,1.0]
[1609498713734,1.81180302,29253.0,29242.0,1.0]
[1609498713933,0.53180302,29252.0,29242.0,1.0]
[1609498714135,0.28,29253.0,29243.0,0.15]
[1609498714332,1.0,29252.0,29243.0,0.15]
[1609498714530,1.2,29252.0,29243.0,0.15]
[1609498714835,1.0,29252.0,29244.0,1.0]
[1609498715291,1.2,29252.0,29244.0,1.0]
[1609498715989,0.83777353,29246.0,29244.0,1.0]
[1609498719720,0.83777353,29246.0,29241.0,1.0]
[1609498719922,0.83777353,29246.0,29242.0,0.195]
[1609498720630,0.83777353,29246.0,29243.0,1.0]
[1609498722633,0.83777353,29246.0,29244.0,0.225]
[1609498724438,0.83777353,29246.0,29245.0,0.33196586]
[1609498727159,0.83777353,29246.0,29244.0,0.225]
[1609498745997,0.83777353,29246.0,29243.0,1.33259054]
[1609498746607,0.83777353,29246.0,29243.0,1.0]